[Event "TOP 12 FEMININ 2022 - Phase 1"]
[Site "MULHOUSE, France"]
[Date "2022.04.07"]
[Round "1.11"]
[White "LE BAIL  LES, Clara"]
[Black "FORTUIT  JUV, Emilie"]
[Result "1-0"]
[TimeControl "90 min +30 secondes par coup"]
[WhiteElo "1960"]
[BlackElo "1954"]

1. e4 {[%clk 01:30:51]} {[%emt 00:00:09]} c5 {[%clk 01:30:41]} {[%emt
00:00:20]} 2. c3 {[%clk 01:31:01]} {[%emt 00:00:20]} d5 {[%clk 01:30:57]}
{[%emt 00:00:14]} 3. exd5 {[%clk 01:30:59]} {[%emt 00:00:31]} Qxd5 {[%clk
01:31:14]} {[%emt 00:00:13]} 4. d4 {[%clk 01:30:35]} {[%emt 00:00:55]} Nf6
{[%clk 01:31:19]} {[%emt 00:00:25]} 5. Nf3 {[%clk 01:27:56]} {[%emt 00:03:09]}
Bg4 {[%clk 01:31:06]} {[%emt 00:00:43]} 6. Be2 {[%clk 01:27:02]} {[%emt
00:01:23]} Nc6 {[%clk 01:30:03]} {[%emt 00:01:33]} 7. h3 {[%clk 01:21:30]}
{[%emt 00:06:03]} Bh5 {[%clk 01:29:54]} {[%emt 00:00:39]} 8. Be3 {[%clk
01:17:48]} {[%emt 00:04:12]} cxd4 {[%clk 01:25:05]} {[%emt 00:05:19]} 9. cxd4
{[%clk 01:17:09]} {[%emt 00:01:09]} e6 {[%clk 01:24:04]} {[%emt 00:01:31]} 10.
Nc3 {[%clk 01:15:46]} {[%emt 00:01:53]} Qd6 {[%clk 01:21:37]} {[%emt 00:02:56]}
11. O-O {[%clk 01:11:19]} {[%emt 00:04:57]} Be7 {[%clk 01:17:52]} {[%emt
00:04:16]} 12. Rc1 {[%clk 01:04:35]} {[%emt 00:07:13]} O-O {[%clk 01:14:55]}
{[%emt 00:03:27]} 13. Qb3 {[%clk 00:55:52]} {[%emt 00:09:13]} Qb4 {[%clk
01:12:42]} {[%emt 00:02:44]} 14. Qxb4 {[%clk 00:49:07]} {[%emt 00:07:15]} Nxb4
{[%clk 01:13:06]} {[%emt 00:00:06]} 15. g4 {[%clk 00:49:10]} {[%emt 00:00:27]}
Bg6 {[%clk 01:12:20]} {[%emt 00:01:15]} 16. Ne5 {[%clk 00:49:26]} {[%emt
00:00:15]} Rfd8 {[%clk 00:48:39]} {[%emt 00:24:11]} 17. Bf3 {[%clk 00:38:46]}
{[%emt 00:11:09]} Nd3 {[%clk 00:32:05]} {[%emt 00:17:04]} 18. Nxd3 {[%clk
00:29:11]} {[%emt 00:10:05]} Bxd3 {[%clk 00:32:15]} {[%emt 00:00:20]} 19. Rfd1
{[%clk 00:29:28]} {[%emt 00:00:13]} Ba6 {[%clk 00:27:46]} {[%emt 00:04:59]} 20.
g5 {[%clk 00:22:44]} {[%emt 00:07:13]} Ne8 {[%clk 00:24:53]} {[%emt 00:03:23]}
21. d5 {[%clk 00:21:28]} {[%emt 00:01:47]} e5 {[%clk 00:24:04]} {[%emt
00:01:20]} 22. Ne4 {[%clk 00:20:58]} {[%emt 00:00:59]} Nd6 {[%clk 00:20:33]}
{[%emt 00:04:01]} 23. Nxd6 {[%clk 00:17:25]} {[%emt 00:04:03]} Bxd6 {[%clk
00:20:30]} {[%emt 00:00:33]} 24. Bc5 {[%clk 00:17:03]} {[%emt 00:00:52]} Bxc5
{[%clk 00:12:44]} {[%emt 00:08:16]} 25. Rxc5 {[%clk 00:17:28]} {[%emt
00:00:05]} Rd6 {[%clk 00:09:44]} {[%emt 00:03:30]} 26. Rc7 {[%clk 00:14:26]}
{[%emt 00:03:32]} f5 {[%clk 00:09:50]} {[%emt 00:00:24]} 27. gxf6 {[%clk
00:13:48]} {[%emt 00:01:08]} Rxf6 {[%clk 00:09:38]} {[%emt 00:00:41]} 28. Bg2
{[%clk 00:12:48]} {[%emt 00:01:30]} Kf8 {[%clk 00:08:22]} {[%emt 00:01:47]} 29.
Re1 {[%clk 00:07:43]} {[%emt 00:05:34]} Re8 {[%clk 00:07:44]} {[%emt 00:01:08]}
30. Be4 {[%clk 00:06:18]} {[%emt 00:01:55]} h6 {[%clk 00:07:12]} {[%emt
00:01:02]} 31. b4 {[%clk 00:05:44]} {[%emt 00:01:04]} Re7 {[%clk 00:06:41]}
{[%emt 00:01:01]} 32. Rec1 {[%clk 00:04:51]} {[%emt 00:01:23]} Rd6 {[%clk
00:06:37]} {[%emt 00:00:34]} 33. a4 {[%clk 00:03:34]} {[%emt 00:01:48]} b5
{[%clk 00:03:19]} {[%emt 00:03:48]} 34. a5 {[%clk 00:03:31]} {[%emt 00:00:33]}
Rdd7 {[%clk 00:03:21]} {[%emt 00:00:28]} 35. R7c5 {[%clk 00:02:46]} {[%emt
00:01:15]} Kf7 {[%clk 00:03:21]} {[%emt 00:00:30]} 36. R1c3 {[%clk 00:02:54]}
{[%emt 00:00:22]} g5 {[%clk 00:02:31]} {[%emt 00:01:19]} 37. Rf3+ {[%clk
00:02:32]} {[%emt 00:00:52]} Kg7 {[%clk 00:02:48]} {[%emt 00:00:13]} 38. Rc6
{[%clk 00:02:42]} {[%emt 00:00:20]} Bb7 {[%clk 00:02:39]} {[%emt 00:00:40]} 39.
Rg6+ {[%clk 00:03:01]} {[%emt 00:00:11]} Kh8 {[%clk 00:02:42]} {[%emt
00:00:26]} 40. Rf8+ {[%clk 00:03:21]} {[%emt 00:00:10]} Kh7 {[%clk 00:02:57]}
{[%emt 00:00:16]} 41. Rxg5# {[%clk 00:03:28]} {[%emt 00:00:22]} 1-0

[Event "TOP 12 FEMININ 2022 - Phase 1"]
[Site "MULHOUSE, France"]
[Date "2022.04.07"]
[Round "1.12"]
[White "FRETEL JUV, Liza"]
[Black "WOLHERS-ARMAS  LES, Rike"]
[Result "1-0"]
[TimeControl "90 min +30 secondes par coup"]
[WhiteElo "1946"]
[BlackElo "1972"]

1. e4 {[%clk 01:30:57]} {[%emt 00:00:02]} c5 {[%clk 01:30:33]} {[%emt
00:00:27]} 2. Nc3 {[%clk 01:31:08]} {[%emt 00:00:19]} Nc6 {[%clk 01:30:24]}
{[%emt 00:00:39]} 3. Bb5 {[%clk 01:31:13]} {[%emt 00:00:25]} Nd4 {[%clk
01:30:10]} {[%emt 00:00:44]} 4. Bc4 {[%clk 01:31:26]} {[%emt 00:00:16]} e6
{[%clk 01:28:55]} {[%emt 00:01:47]} 5. Nge2 {[%clk 01:31:11]} {[%emt 00:00:45]}
a6 {[%clk 01:27:33]} {[%emt 00:01:51]} 6. a4 {[%clk 01:29:15]} {[%emt
00:02:26]} Nf6 {[%clk 01:26:18]} {[%emt 00:01:46]} 7. O-O {[%clk 01:17:05]}
{[%emt 00:12:40]} d5 {[%clk 01:21:30]} {[%emt 00:05:17]} 8. exd5 {[%clk
01:16:01]} {[%emt 00:01:35]} exd5 {[%clk 01:19:10]} {[%emt 00:02:50]} 9. Ba2
{[%clk 01:15:40]} {[%emt 00:00:51]} Bg4 {[%clk 01:08:20]} {[%emt 00:11:20]} 10.
d3 {[%clk 01:07:01]} {[%emt 00:09:08]} Be7 {[%clk 01:01:44]} {[%emt 00:07:06]}
11. f3 {[%clk 01:03:19]} {[%emt 00:04:12]} Nxe2+ {[%clk 01:00:30]} {[%emt
00:01:45]} 12. Nxe2 {[%clk 01:00:58]} {[%emt 00:02:51]} Bd7 {[%clk 00:57:40]}
{[%emt 00:03:18]} 13. c3 {[%clk 00:48:35]} {[%emt 00:12:54]} O-O {[%clk
00:49:07]} {[%emt 00:09:03]} 14. d4 {[%clk 00:48:45]} {[%emt 00:00:21]} b5
{[%clk 00:41:08]} {[%emt 00:08:28]} 15. dxc5 {[%clk 00:41:51]} {[%emt
00:07:24]} Bxc5+ {[%clk 00:41:11]} {[%emt 00:00:27]} 16. Kh1 {[%clk 00:42:18]}
{[%emt 00:00:04]} bxa4 {[%clk 00:34:56]} {[%emt 00:06:44]} 17. Bg5 {[%clk
00:33:21]} {[%emt 00:09:27]} Bb5 {[%clk 00:30:25]} {[%emt 00:05:01]} 18. Qc2
{[%clk 00:24:26]} {[%emt 00:09:25]} Re8 {[%clk 00:27:27]} {[%emt 00:03:28]} 19.
Rae1 {[%clk 00:23:11]} {[%emt 00:01:45]} Re6 {[%clk 00:22:54]} {[%emt
00:05:03]} 20. Nf4 {[%clk 00:20:05]} {[%emt 00:03:36]} Bxf1 {[%clk 00:22:18]}
{[%emt 00:01:05]} 21. Nxe6 {[%clk 00:20:07]} {[%emt 00:00:29]} fxe6 {[%clk
00:22:01]} {[%emt 00:00:47]} 22. Rxf1 {[%clk 00:20:34]} {[%emt 00:00:04]} Qd7
{[%clk 00:21:33]} {[%emt 00:00:57]} 23. Bb1 {[%clk 00:19:36]} {[%emt 00:01:28]}
Re8 {[%clk 00:20:28]} {[%emt 00:01:35]} 24. Rd1 {[%clk 00:18:03]} {[%emt
00:02:04]} Re7 {[%clk 00:18:20]} {[%emt 00:02:37]} 25. Ba2 {[%clk 00:16:43]}
{[%emt 00:01:50]} Qc6 {[%clk 00:15:46]} {[%emt 00:03:04]} 26. Re1 {[%clk
00:14:42]} {[%emt 00:02:32]} a3 {[%clk 00:11:57]} {[%emt 00:04:18]} 27. bxa3
{[%clk 00:14:38]} {[%emt 00:00:34]} Bxa3 {[%clk 00:12:06]} {[%emt 00:00:21]} 28.
c4 {[%clk 00:11:59]} {[%emt 00:03:09]} d4 {[%clk 00:08:59]} {[%emt 00:03:37]}
29. c5 {[%clk 00:11:03]} {[%emt 00:01:26]} Bxc5 {[%clk 00:07:34]} {[%emt
00:01:55]} 30. Rc1 {[%clk 00:10:59]} {[%emt 00:00:34]} Rc7 {[%clk 00:07:40]}
{[%emt 00:00:24]} 31. Bf4 {[%clk 00:10:48]} {[%emt 00:00:42]} Rc8 {[%clk
00:07:51]} {[%emt 00:00:18]} 32. Be5 {[%clk 00:10:13]} {[%emt 00:01:06]} Qd7
{[%clk 00:06:28]} {[%emt 00:01:53]} 33. Bxf6 {[%clk 00:09:17]} {[%emt
00:01:25]} gxf6 {[%clk 00:06:56]} {[%emt 00:00:02]} 34. Qf5 {[%clk 00:09:28]}
{[%emt 00:00:20]} Kf7 {[%clk 00:05:41]} {[%emt 00:01:45]} 35. Qxh7+ {[%clk
00:07:51]} {[%emt 00:02:07]} Ke8 {[%clk 00:06:04]} {[%emt 00:00:06]} 36. Qg8+
{[%clk 00:06:43]} {[%emt 00:01:39]} Bf8 {[%clk 00:05:07]} {[%emt 00:01:27]} 37.
Qg6+ {[%clk 00:05:56]} {[%emt 00:01:17]} Ke7 {[%clk 00:05:09]} {[%emt
00:00:27]} 38. Re1 {[%clk 00:04:41]} {[%emt 00:01:45]} Rc6 {[%clk 00:04:51]}
{[%emt 00:00:48]} 39. h4 {[%clk 00:03:27]} {[%emt 00:01:45]} d3 {[%clk
00:04:51]} {[%emt 00:00:30]} 40. Qh7+ {[%clk 00:03:05]} {[%emt 00:00:51]} Kd8
{[%clk 00:04:27]} {[%emt 00:00:54]} 41. Qe4 {[%clk 00:02:32]} {[%emt 00:01:04]}
d2 {[%clk 00:03:44]} {[%emt 00:01:13]} 42. Rd1 {[%clk 00:02:21]} {[%emt
00:00:41]} Rc1 {[%clk 00:03:33]} {[%emt 00:00:41]} 43. Bb3 {[%clk 00:02:30]}
{[%emt 00:00:21]} Qd6 {[%clk 00:02:46]} {[%emt 00:01:17]} 44. Ba4 {[%clk
00:02:20]} {[%emt 00:00:40]} f5 {[%clk 00:01:51]} {[%emt 00:01:25]} 45. Qa8+
{[%clk 00:02:33]} {[%emt 00:00:17]} Ke7 {[%clk 00:02:14]} {[%emt 00:00:07]} 46.
Qb7+ {[%clk 00:02:56]} {[%emt 00:00:06]} Kf6 {[%clk 00:02:27]} {[%emt
00:00:17]} 47. Qb2+ {[%clk 00:03:16]} {[%emt 00:00:11]} Qe5 {[%clk 00:02:42]}
{[%emt 00:00:15]} 48. Qxd2 {[%clk 00:03:30]} {[%emt 00:00:16]} Rc4 {[%clk
00:02:55]} {[%emt 00:00:16]} 49. Qg5+ {[%clk 00:03:28]} {[%emt 00:00:33]} Kf7
{[%clk 00:03:18]} {[%emt 00:00:07]} 50. Rd7+ {[%clk 00:03:49]} {[%emt
00:00:09]} 1-0

[Event "TOP 12 FEMININ 2022 - Phase 1"]
[Site "MULHOUSE, France"]
[Date "2022.04.07"]
[Round "1.13"]
[White "KOVACS  STR, Klara"]
[Black "TERRAZZONI  DOM, Claire"]
[Result "1-0"]
[TimeControl "90 min +30 secondes par coup"]
[WhiteElo "2117"]
[BlackElo "1794"]

1. d4 {[%clk 01:30:54]} {[%emt 00:00:05]} d5 {[%clk 01:30:53]} {[%emt
00:00:07]} 2. Nf3 {[%clk 01:31:09]} {[%emt 00:00:15]} Nf6 {[%clk 01:31:00]}
{[%emt 00:00:25]} 3. g3 {[%clk 01:31:29]} {[%emt 00:00:09]} e6 {[%clk
01:30:59]} {[%emt 00:00:30]} 4. Bg2 {[%clk 01:31:52]} {[%emt 00:00:07]} Be7
{[%clk 01:31:06]} {[%emt 00:00:23]} 5. O-O {[%clk 01:32:14]} {[%emt 00:00:08]}
O-O {[%clk 01:31:17]} {[%emt 00:00:19]} 6. c4 {[%clk 01:32:39]} {[%emt
00:00:06]} dxc4 {[%clk 01:30:53]} {[%emt 00:00:54]} 7. Qc2 {[%clk 01:33:01]}
{[%emt 00:00:08]} a6 {[%clk 01:29:06]} {[%emt 00:02:17]} 8. Qxc4 {[%clk
01:33:15]} {[%emt 00:00:17]} b5 {[%clk 01:29:01]} {[%emt 00:00:34]} 9. Qc2
{[%clk 01:33:38]} {[%emt 00:00:06]} Bb7 {[%clk 01:28:16]} {[%emt 00:01:15]} 10.
Rd1 {[%clk 01:29:34]} {[%emt 00:04:34]} Be4 {[%clk 01:10:33]} {[%emt 00:18:14]}
11. Qb3 {[%clk 01:29:47]} {[%emt 00:00:17]} Nbd7 {[%clk 00:59:06]} {[%emt
00:11:57]} 12. Nc3 {[%clk 01:28:09]} {[%emt 00:02:06]} Bb7 {[%clk 00:52:57]}
{[%emt 00:06:40]} 13. Bf4 {[%clk 01:20:25]} {[%emt 00:08:13]} c5 {[%clk
00:41:30]} {[%emt 00:11:57]} 14. dxc5 {[%clk 01:19:04]} {[%emt 00:01:52]} Bxc5
{[%clk 00:40:25]} {[%emt 00:01:35]} 15. Ne5 {[%clk 01:16:02]} {[%emt 00:03:31]}
Bxg2 {[%clk 00:36:40]} {[%emt 00:04:16]} 16. Kxg2 {[%clk 01:16:30]} {[%emt
00:00:02]} Qe8 {[%clk 00:33:39]} {[%emt 00:03:31]} 17. Nxd7 {[%clk 01:13:52]}
{[%emt 00:03:08]} Nxd7 {[%clk 00:33:54]} {[%emt 00:00:15]} 18. Ne4 {[%clk
01:14:01]} {[%emt 00:00:21]} e5 {[%clk 00:28:37]} {[%emt 00:05:47]} 19. Bh6
{[%clk 01:10:26]} {[%emt 00:04:04]} Bd4 {[%clk 00:24:33]} {[%emt 00:04:35]} 20.
Rac1 {[%clk 00:56:40]} {[%emt 00:14:15]} Nc5 {[%clk 00:14:51]} {[%emt
00:10:13]} 21. Qf3 {[%clk 00:31:14]} {[%emt 00:25:55]} Qc6 {[%clk 00:09:33]}
{[%emt 00:05:48]} 22. Nf6+ {[%clk 00:10:08]} {[%emt 00:21:36]} Qxf6 {[%clk
00:08:59]} {[%emt 00:01:04]} 23. Qxf6 {[%clk 00:10:36]} {[%emt 00:00:03]} gxf6
{[%clk 00:09:21]} {[%emt 00:00:08]} 24. Bxf8 {[%clk 00:10:37]} {[%emt
00:00:30]} Kxf8 {[%clk 00:06:28]} {[%emt 00:03:22]} 25. Rxd4 {[%clk 00:07:50]}
{[%emt 00:03:17]} exd4 {[%clk 00:05:51]} {[%emt 00:01:07]} 26. Rxc5 {[%clk
00:08:18]} {[%emt 00:00:03]} Ke7 {[%clk 00:04:37]} {[%emt 00:01:43]} 27. Rc6
{[%clk 00:07:06]} {[%emt 00:01:42]} a5 {[%clk 00:02:32]} {[%emt 00:02:35]} 28.
Kf3 {[%clk 00:07:17]} {[%emt 00:00:18]} Rd8 {[%clk 00:01:58]} {[%emt 00:01:05]}
29. Ke4 {[%clk 00:07:24]} {[%emt 00:00:23]} Rg8 {[%clk 00:01:20]} {[%emt
00:01:07]} 30. Kxd4 {[%clk 00:06:51]} {[%emt 00:01:04]} Rd8+ {[%clk 00:01:20]}
{[%emt 00:00:30]} 31. Ke3 {[%clk 00:07:12]} {[%emt 00:00:09]} Rd5 {[%clk
00:01:16]} {[%emt 00:00:34]} 32. g4 {[%clk 00:04:30]} {[%emt 00:03:11]} Re5+
{[%clk 00:00:48]} {[%emt 00:00:59]} 33. Kf3 {[%clk 00:04:51]} {[%emt 00:00:09]}
Rd5 {[%clk 00:01:11]} {[%emt 00:00:07]} 34. Rb6 {[%clk 00:04:45]} {[%emt
00:00:36]} b4 {[%clk 00:01:10]} {[%emt 00:00:31]} 35. a3 {[%clk 00:05:01]}
{[%emt 00:00:14]} bxa3 {[%clk 00:00:56]} {[%emt 00:00:44]} 36. bxa3 {[%clk
00:05:29]} {[%emt 00:00:03]} Rc5 {[%clk 00:00:50]} {[%emt 00:00:35]} 37. Rb3
{[%clk 00:05:24]} {[%emt 00:00:35]} Ke6 {[%clk 00:00:46]} {[%emt 00:00:34]} 38.
e3 {[%clk 00:04:20]} {[%emt 00:01:34]} Ke5 {[%clk 00:00:33]} {[%emt 00:00:44]}
39. Rb7 {[%clk 00:04:08]} {[%emt 00:00:41]} Ke6 {[%clk 00:00:45]} {[%emt
00:00:18]} 40. Ra7 {[%clk 00:04:00]} {[%emt 00:00:38]} Rd5 {[%clk 00:00:35]}
{[%emt 00:00:40]} 41. Kf4 {[%clk 00:03:48]} {[%emt 00:00:41]} Rc5 {[%clk
00:00:39]} {[%emt 00:00:26]} 42. Ra6+ {[%clk 00:04:07]} {[%emt 00:00:12]} Ke7
{[%clk 00:00:55]} {[%emt 00:00:14]} 43. h4 {[%clk 00:04:17]} {[%emt 00:00:20]}
Rc4+ {[%clk 00:00:57]} {[%emt 00:00:29]} 44. e4 {[%clk 00:03:49]} {[%emt
00:00:57]} Rc5 {[%clk 00:01:14]} {[%emt 00:00:14]} 45. f3 {[%clk 00:02:37]}
{[%emt 00:01:41]} Rb5 {[%clk 00:01:29]} {[%emt 00:00:15]} 46. Ra8 {[%clk
00:02:22]} {[%emt 00:00:45]} h5 {[%clk 00:01:06]} {[%emt 00:00:52]} 47. g5
{[%clk 00:01:10]} {[%emt 00:01:42]} fxg5+ {[%clk 00:00:43]} {[%emt 00:00:54]}
48. hxg5 {[%clk 00:01:39]} {[%emt 00:00:01]} Rc5 {[%clk 00:00:46]} {[%emt
00:00:27]} 49. Ra7+ {[%clk 00:01:35]} {[%emt 00:00:35]} Ke6 {[%clk 00:00:50]}
{[%emt 00:00:25]} 50. Ra6+ {[%clk 00:01:54]} {[%emt 00:00:11]} Ke7 {[%clk
00:00:35]} {[%emt 00:00:45]} 51. g6 {[%clk 00:00:44]} {[%emt 00:01:40]} fxg6
{[%clk 00:00:58]} {[%emt 00:00:06]} 52. Rxg6 {[%clk 00:01:02]} {[%emt
00:00:12]} Rc3 {[%clk 00:01:20]} {[%emt 00:00:09]} 53. Rh6 {[%clk 00:01:26]}
{[%emt 00:00:06]} Rxa3 {[%clk 00:01:17]} {[%emt 00:00:33]} 54. Rxh5 {[%clk
00:01:54]} {[%emt 00:00:02]} a4 {[%clk 00:01:03]} {[%emt 00:00:44]} 55. Ra5
{[%clk 00:02:15]} {[%emt 00:00:09]} Ra1 {[%clk 00:01:14]} {[%emt 00:00:19]} 56.
Ke5 {[%clk 00:02:33]} {[%emt 00:00:12]} a3 {[%clk 00:01:19]} {[%emt 00:00:26]}
57. Ra7+ {[%clk 00:02:56]} {[%emt 00:00:06]} Kd8 {[%clk 00:01:21]} {[%emt
00:00:28]} 58. f4 {[%clk 00:03:21]} {[%emt 00:00:05]} a2 {[%clk 00:01:11]}
{[%emt 00:00:41]} 59. f5 {[%clk 00:03:44]} {[%emt 00:00:06]} Ke8 {[%clk
00:01:17]} {[%emt 00:00:24]} 60. Ke6 {[%clk 00:03:46]} {[%emt 00:00:27]} Kd8
{[%clk 00:01:24]} {[%emt 00:00:24]} 61. e5 {[%clk 00:04:10]} {[%emt 00:00:06]}
1-0

[Event "TOP 12 FEMININ 2022 - Phase 1"]
[Site "MULHOUSE, France"]
[Date "2022.04.07"]
[Round "1.14"]
[White "LE MAREC  DOM, Laura"]
[Black "ROOS  STR, Louise"]
[Result "1-0"]
[TimeControl "90 min +30 secondes par coup"]
[WhiteElo "1770"]
[BlackElo "1803"]

1. c4 {[%clk 01:30:56]} {[%emt 00:00:02]} e6 {[%clk 01:30:17]} {[%emt
00:00:44]} 2. e4 {[%clk 01:30:45]} {[%emt 00:00:42]} c5 {[%clk 01:30:22]}
{[%emt 00:00:24]} 3. Nc3 {[%clk 01:27:18]} {[%emt 00:03:57]} Nc6 {[%clk
01:30:02]} {[%emt 00:00:50]} 4. Nf3 {[%clk 01:26:17]} {[%emt 00:01:31]} a6
{[%clk 01:27:14]} {[%emt 00:03:17]} 5. d4 {[%clk 01:21:47]} {[%emt 00:05:01]}
cxd4 {[%clk 01:26:37]} {[%emt 00:01:07]} 6. Nxd4 {[%clk 01:21:55]} {[%emt
00:00:21]} Qc7 {[%clk 01:26:48]} {[%emt 00:00:20]} 7. Be3 {[%clk 01:05:18]}
{[%emt 00:17:07]} Nf6 {[%clk 01:24:33]} {[%emt 00:02:45]} 8. g3 {[%clk
00:53:20]} {[%emt 00:12:28]} Be7 {[%clk 01:13:50]} {[%emt 00:11:12]} 9. Bg2
{[%clk 00:50:07]} {[%emt 00:03:44]} O-O {[%clk 01:10:58]} {[%emt 00:03:22]} 10.
O-O {[%clk 00:45:35]} {[%emt 00:05:03]} Rb8 {[%clk 00:58:26]} {[%emt 00:13:00]}
11. Qe2 {[%clk 00:39:11]} {[%emt 00:06:55]} b6 {[%clk 00:55:05]} {[%emt
00:03:50]} 12. Rac1 {[%clk 00:34:08]} {[%emt 00:05:34]} Bc5 {[%clk 00:51:14]}
{[%emt 00:04:20]} 13. Nxc6 {[%clk 00:29:37]} {[%emt 00:05:02]} dxc6 {[%clk
00:50:53]} {[%emt 00:00:50]} 14. Bxc5 {[%clk 00:28:56]} {[%emt 00:01:12]} bxc5
{[%clk 00:51:19]} {[%emt 00:00:04]} 15. e5 {[%clk 00:28:18]} {[%emt 00:01:09]}
Nd7 {[%clk 00:49:44]} {[%emt 00:02:04]} 16. f4 {[%clk 00:23:42]} {[%emt
00:05:06]} a5 {[%clk 00:37:30]} {[%emt 00:12:45]} 17. b3 {[%clk 00:23:08]}
{[%emt 00:01:03]} Nb6 {[%clk 00:35:05]} {[%emt 00:02:54]} 18. Ne4 {[%clk
00:22:06]} {[%emt 00:01:33]} Ba6 {[%clk 00:34:33]} {[%emt 00:01:02]} 19. Kh1
{[%clk 00:21:16]} {[%emt 00:01:20]} Rbd8 {[%clk 00:34:21]} {[%emt 00:00:41]} 20.
Nxc5 {[%clk 00:19:20]} {[%emt 00:02:26]} Bb7 {[%clk 00:33:09]} {[%emt
00:01:42]} 21. Rcd1 {[%clk 00:18:20]} {[%emt 00:01:31]} Ba8 {[%clk 00:21:03]}
{[%emt 00:12:35]} 22. Rd2 {[%clk 00:11:44]} {[%emt 00:07:07]} Qe7 {[%clk
00:16:47]} {[%emt 00:04:46]} 23. Ne4 {[%clk 00:10:49]} {[%emt 00:01:25]} c5
{[%clk 00:14:58]} {[%emt 00:02:20]} 24. Nd6 {[%clk 00:10:36]} {[%emt 00:00:43]}
Qa7 {[%clk 00:13:23]} {[%emt 00:02:04]} 25. Rfd1 {[%clk 00:10:19]} {[%emt
00:00:47]} a4 {[%clk 00:11:26]} {[%emt 00:02:27]} 26. Nb5 {[%clk 00:10:12]}
{[%emt 00:00:37]} Rxd2 {[%clk 00:10:28]} {[%emt 00:01:28]} 27. Qxd2 {[%clk
00:10:21]} {[%emt 00:00:22]} Qe7 {[%clk 00:08:14]} {[%emt 00:02:43]} 28. Bxa8
{[%clk 00:08:30]} {[%emt 00:02:22]} Rxa8 {[%clk 00:07:59]} {[%emt 00:00:43]} 29.
Qd6 {[%clk 00:07:57]} {[%emt 00:01:03]} Qb7+ {[%clk 00:07:33]} {[%emt
00:00:56]} 30. Kg1 {[%clk 00:08:09]} {[%emt 00:00:19]} h6 {[%clk 00:07:22]}
{[%emt 00:00:42]} 31. Qxc5 {[%clk 00:06:49]} {[%emt 00:01:50]} axb3 {[%clk
00:06:29]} {[%emt 00:01:22]} 32. a3 {[%clk 00:05:35]} {[%emt 00:01:44]} Qf3
{[%clk 00:05:34]} {[%emt 00:01:24]} 33. Rf1 {[%clk 00:03:12]} {[%emt 00:02:54]}
Qd3 {[%clk 00:01:58]} {[%emt 00:04:07]} 34. Qxb6 {[%clk 00:02:50]} {[%emt
00:00:52]} Qxc4 {[%clk 00:02:23]} {[%emt 00:00:04]} 35. Nd6 {[%clk 00:03:04]}
{[%emt 00:00:16]} Qc2 {[%clk 00:02:18]} {[%emt 00:00:35]} 36. Qf2 {[%clk
00:01:46]} {[%emt 00:01:47]} Qc3 {[%clk 00:02:16]} {[%emt 00:00:30]} 37. Qf3
{[%clk 00:01:11]} {[%emt 00:01:08]} Qd4+ {[%clk 00:02:21]} {[%emt 00:00:25]} 38.
Kg2 {[%clk 00:01:23]} {[%emt 00:00:17]} Rb8 {[%clk 00:01:33]} {[%emt 00:01:19]}
39. Rb1 {[%clk 00:01:31]} {[%emt 00:00:22]} Qd2+ {[%clk 00:01:26]} {[%emt
00:00:36]} 40. Qf2 {[%clk 00:01:54]} {[%emt 00:00:08]} Qd3 {[%clk 00:01:09]}
{[%emt 00:00:46]} 41. Rb2 {[%clk 00:02:03]} {[%emt 00:00:22]} Qa6 {[%clk
00:00:37]} {[%emt 00:01:01]} 42. Qc5 {[%clk 00:01:23]} {[%emt 00:01:11]} Qa8+
{[%clk 00:00:40]} {[%emt 00:00:26]} 43. Kg1 {[%clk 00:01:45]} {[%emt 00:00:08]}
Qf3 {[%clk 00:00:57]} {[%emt 00:00:14]} 44. a4 {[%clk 00:01:34]} {[%emt
00:00:41]} Ra8 {[%clk 00:01:06]} {[%emt 00:00:20]} 45. Qb5 {[%clk 00:01:16]}
{[%emt 00:00:49]} Qe3+ {[%clk 00:01:26]} {[%emt 00:00:10]} 46. Kg2 {[%clk
00:01:26]} {[%emt 00:00:20]} Qd4 {[%clk 00:01:15]} {[%emt 00:00:39]} 47. Rxb3
{[%clk 00:01:13]} {[%emt 00:00:44]} Rxa4 {[%clk 00:01:29]} {[%emt 00:00:15]} 48.
Rb2 {[%clk 00:01:26]} {[%emt 00:00:19]} Ra1 {[%clk 00:01:40]} {[%emt 00:00:19]}
49. Rf2 {[%clk 00:01:05]} {[%emt 00:00:51]} Qd1 {[%clk 00:01:36]} {[%emt
00:00:34]} 50. Qe2 {[%clk 00:01:01]} {[%emt 00:00:34]} Qd5+ {[%clk 00:01:05]}
{[%emt 00:01:00]} 51. Kh3 {[%clk 00:01:22]} {[%emt 00:00:10]} Qc5 {[%clk
00:00:51]} {[%emt 00:00:43]} 52. Qb2 {[%clk 00:01:36]} {[%emt 00:00:18]} Rd1
{[%clk 00:00:48]} {[%emt 00:00:33]} 53. Qc2 {[%clk 00:01:13]} {[%emt 00:00:52]}
Qe3 {[%clk 00:00:54]} {[%emt 00:00:23]} 54. Qc8+ {[%clk 00:00:55]} {[%emt
00:00:49]} Kh7 {[%clk 00:01:19]} {[%emt 00:00:06]} 55. Qc2+ {[%clk 00:01:21]}
{[%emt 00:00:03]} Kg8 {[%clk 00:01:33]} {[%emt 00:00:16]} 56. Re2 {[%clk
00:01:07]} {[%emt 00:00:44]} Qd4 {[%clk 00:01:43]} {[%emt 00:00:19]} 57. Qe4
{[%clk 00:01:00]} {[%emt 00:00:38]} Qa7 {[%clk 00:01:53]} {[%emt 00:00:20]} 58.
Rc2 {[%clk 00:01:15]} {[%emt 00:00:15]} g6 {[%clk 00:02:05]} {[%emt 00:00:18]}
59. Rc8+ {[%clk 00:01:25]} {[%emt 00:00:19]} Kg7 {[%clk 00:02:34]} {[%emt
00:00:02]} 60. Ne8+ {[%clk 00:01:46]} {[%emt 00:00:09]} Kh7 {[%clk 00:02:49]}
{[%emt 00:00:15]} 61. Nf6+ {[%clk 00:02:12]} {[%emt 00:00:04]} 1-0